fUSD/lending_fUSD_20250606
["ID","MTS","AMOUNT","RATE_DAILY","PERIOD"]
[364757044,1749229889939,-6395.04,0.00028712,5]
[364757045,1749229889949,-480.0,0.00028712,5]
[364757046,1749229889958,-835.42,0.00028712,5]
[364757047,1749229889968,-480.0,0.00028712,5]
[364757048,1749229889978,-713.79,0.00028712,5]
[364757049,1749229889987,-2288.96,0.00028712,5]
[364757050,1749229889997,-1697.69,0.00028712,5]
[364757051,1749229890008,-727.92,0.00028712,5]
[364757052,1749229890018,-12208.62,0.00028712,5]
[364757053,1749229890028,-3886.76,0.00028712,5]
[364757054,1749229890037,-6723.06,0.00028712,5]
[364757055,1749229890046,-2328.748482,0.00028712,5]
[364757056,1749229890055,-480.0,0.00028712,5]
[364757057,1749229890065,-3392.86,0.00028712,5]
[364757058,1749229890074,-151.0,0.00028712,7]
[364757059,1749229890083,-540.76,0.00028712,5]
[364757060,1749229890092,-527.54,0.00028712,5]
[364757061,1749229890102,-1317.74,0.00028712,5]
[364757062,1749229890111,-2152.11,0.00028712,5]
[364757063,1749229890121,-9718.94,0.00028712,5]
[364757064,1749229890130,-480.0,0.00028712,5]
[364757065,1749229890139,-76268.38,0.00028712,5]
[364757066,1749229890148,-978.82,0.00028712,5]
[364757067,1749229890158,-587.06,0.00028712,5]
[364757068,1749229890168,-499.91,0.00028712,5]
[364757069,1749229890177,-480.0,0.00028712,5]
[364757070,1749229890188,-725.67,0.00028712,5]
[364757071,1749229890199,-2136.804126,0.00028712,5]
[364757072,1749229890209,-3764.36,0.00028712,5]
[364757073,1749229890223,-9211.11,0.00028712,5]
[364757074,1749229890233,-1051.06,0.00028712,5]
[364757075,1749229890242,-1366.23,0.00028712,5]
[364757076,1749229890252,-983.23,0.00028712,5]
[364757077,1749229890261,-1624.53,0.00028712,5]
[364757078,1749229890271,-508.09,0.00028712,5]
[364757079,1749229890283,-2500.86,0.00028712,5]
[364757080,1749229890294,-2408.48,0.00028712,5]
[364757081,1749229890305,-1199.82,0.00028712,5]
[364757082,1749229890314,-473.147601,0.00028712,7]
[364757083,1749229890324,-1867.89,0.00028712,5]
[364757084,1749229890334,-1202.07,0.00028712,5]
[364757085,1749229890344,-1234.98,0.00028712,5]
[364757086,1749229890354,-473.147601,0.00028712,7]
[364757087,1749229890363,-745.42,0.00028712,5]
[364757088,1749229890372,-1000.0,0.00028712,5]
[364757089,1749229890382,-3729.37,0.00028712,5]
[364757090,1749229890391,-1324.5,0.00028712,5]
[364757091,1749229890400,-722.71,0.00028712,5]
[364757092,1749229890409,-1417.88,0.00028712,5]
[364757093,1749229890419,-1476.23,0.00028712,5]
[364757094,1749229890429,-480.0,0.00028712,5]
[364757095,1749229890439,-868.6,0.00028712,5]
[364757096,1749229890449,-1888.62,0.00028712,5]
[364757097,1749229890459,-632.37,0.00028712,5]
[364757098,1749229890468,-756.12,0.00028712,5]
[364757099,1749229890478,-1440.17,0.00028712,5]
[364757100,1749229890488,-1194.84,0.00028712,2]
[364757101,1749229890498,-2062.89,0.00028712,5]
[364757102,1749229890507,-557.64,0.00028712,5]
[364757103,1749229890517,-1788.1,0.00028712,5]
[364757104,1749229890527,-480.0,0.00028712,5]
[364757105,1749229890538,-1072.25,0.00028712,5]
[364757106,1749229890548,-480.0,0.00028712,5]
[364757107,1749229890557,-3928.65,0.00028712,5]
[364757108,1749229890566,-480.0,0.00028712,5]
[364757109,1749229890576,-13781.59,0.00028712,5]
[364757110,1749229890585,-151.294165,0.00028712,5]
[364757111,1749229890595,-2660.61,0.00028712,5]
[364757112,1749229890605,-3569.21,0.00028712,5]
[364757113,1749229890617,-480.0,0.00028712,5]
[364757114,1749229890626,-1139.74,0.00028712,5]
[364757115,1749229890636,-480.0,0.00028712,5]
[364757116,1749229890645,-151.0,0.00028712,7]
[364757117,1749229890655,-827.81,0.00028712,5]
[364757118,1749229890665,-480.0,0.00028712,5]
[364757119,1749229890675,-1869.68,0.00028712,5]
[364757120,1749229890685,-5122.75,0.00028712,5]
[364757121,1749229890696,-265.507238,0.00028712,7]
[364757122,1749229890706,-480.0,0.00028712,5]
[364757123,1749229890715,-1027.17,0.00028712,5]
[364757124,1749229890726,-297.740512,0.00028712,7]
[364757125,1749229890736,-993.4,0.00028712,5]
[364757126,1749229890746,-1731.35,0.00028712,5]
[364757127,1749229890756,-2864.55,0.00028712,5]
[364757128,1749229890766,-946.49,0.00028712,5]
[364757129,1749229890776,-3640.47,0.00028712,5]
[364757130,1749229890786,-480.0,0.00028712,5]
[364757131,1749229890795,-297.740512,0.00028712,7]
[364757132,1749229890805,-480.0,0.00028712,5]
[364757133,1749229890815,-988.86,0.00028712,5]
[364757134,1749229890825,-576.53,0.00028712,5]
[364757135,1749229890835,-1518.37,0.00028712,5]
[364757136,1749229890844,-1165.4,0.00028712,5]
[364757137,1749229890854,-516.9,0.00028712,5]
[364757138,1749229890863,-1631.49,0.00028712,5]
[364757139,1749229890873,-502.37,0.00028712,5]
[364757140,1749229890883,-480.0,0.00028712,5]
[364757141,1749229890893,-818.38,0.00028712,5]
[364757142,1749229890903,-190.24736055,0.00028712,5]
[364757143,1749229890912,-898.12,0.00028712,5]
[364757144,1749229890922,-480.0,0.00028712,5]
[364757145,1749229891098,-544.71,0.00028712,5]
[364757146,1749229891108,-484.48,0.00028712,5]
[364757147,1749229891118,-575.57,0.00028712,5]
[364757148,1749229891127,-480.0,0.00028712,5]
[364757149,1749229891137,-1082.09,0.00028712,5]
[364757150,1749229891146,-1270.81,0.00028712,5]
[364757151,1749229891157,-5019.69,0.00028712,5]
[364757152,1749229891166,-347.566727,0.00028712,7]
[364757153,1749229891175,-642.47,0.00028712,5]
[364757154,1749229891184,-480.0,0.00028712,5]
[364757155,1749229891194,-347.566727,0.00028712,7]
[364757156,1749229891204,-659.85,0.00028712,5]
[364757157,1749229891213,-706.87,0.00028712,5]
[364757158,1749229891223,-1411.91,0.00028712,5]
[364757159,1749229891232,-1928.36,0.00028712,5]
[364757160,1749229891241,-2180.66,0.00028712,5]
[364757161,1749229891251,-480.0,0.00028712,5]
[364757162,1749229891260,-702.23,0.00028712,5]
[364757163,1749229891269,-480.0,0.00028712,5]
[364757164,1749229891279,-696.68,0.00028712,5]
[364757165,1749229891289,-1531.65,0.00028712,5]
[364757166,1749229891299,-480.0,0.00028712,5]
[364757167,1749229891309,-480.0,0.00028712,5]
[364757168,1749229891318,-1808.13,0.00028712,5]
[364757169,1749229891328,-480.0,0.00028712,5]
[364757170,1749229891338,-1978.88,0.00028712,5]
[364757171,1749229891347,-480.0,0.00028712,5]
[364757172,1749229891358,-2908.51,0.00028712,5]
[364757173,1749229891367,-669.35,0.00028712,5]
[364757174,1749229891377,-480.0,0.00028712,5]
[364757175,1749229891387,-1262.05,0.00028712,5]
[364757176,1749229891396,-480.0,0.00028712,5]
[364757177,1749229891406,-1585.44,0.00028712,5]
[364757178,1749229891416,-863.16,0.00028712,5]
[364757179,1749229891425,-716.92,0.00028712,5]
[364757180,1749229891435,-480.0,0.00028712,5]
[364757181,1749229891445,-480.0,0.00028712,5]
[364757182,1749229891454,-595.35190233,0.00028712,5]
[364757183,1749229891464,-10266.6,0.00028712,5]
[364757184,1749229891474,-490.14,0.00028712,5]
[364757185,1749229891484,-1988.94,0.00028712,5]
[364757186,1749229891493,-562.55,0.00028712,5]
[364757187,1749229891503,-2790.95,0.00028712,5]
[364757188,1749229891513,-480.0,0.00028712,5]
[364757189,1749229891523,-518.16,0.00028712,5]
[364757190,1749229891533,-620.01,0.00028712,5]
[364757191,1749229891543,-576.54,0.00028712,5]
[364757192,1749229891554,-496.01,0.00028712,5]
[364757193,1749229891563,-480.0,0.00028712,5]
[364757194,1749229891573,-480.0,0.00028712,5]
[364757195,1749229891583,-480.0,0.00028712,5]
[364757196,1749229891592,-3901.93,0.00028712,5]
[364757197,1749229891602,-480.0,0.00028712,5]
[364757198,1749229891613,-480.0,0.00028712,5]
[364757199,1749229891625,-1302.74,0.00028712,5]
[364757200,1749229891634,-14757.67,0.00028712,5]
[364757201,1749229891644,-2148.25,0.00028712,5]
[364757202,1749229891653,-9779.61,0.00028712,5]
[364757203,1749229891663,-480.0,0.00028712,5]
[364757204,1749229891673,-21008.66,0.00028712,5]
[364757205,1749229891682,-673.26,0.00028712,5]
[364757206,1749229891693,-415.24672384,0.00028712,5]
[364757207,1749229891703,-480.0,0.00028712,5]
[364757208,1749229891713,-889.91,0.00028712,5]
[364757209,1749229891723,-2708.81,0.00028712,5]
[364757210,1749229891732,-776.83,0.00028712,5]
[364757211,1749229891742,-1377.28,0.00028712,5]
[364757212,1749229891753,-585.43,0.00028712,5]
[364757213,1749229891764,-480.0,0.00028712,5]
[364757214,1749229891773,-682.39,0.00028712,5]
[364757215,1749229891784,-2005.29,0.00028712,5]
[364757216,1749229891794,-151.0,0.00028712,7]
[364757217,1749229891804,-4252.69,0.00028712,5]
[364757218,1749229891814,-2178.41,0.00028712,5]
[364757219,1749229891824,-848.79,0.00028712,5]
[364757220,1749229891833,-1974.61,0.00028712,5]
[364757221,1749229891842,-827.75,0.00028712,5]
[364757222,1749229891851,-480.0,0.00028712,5]
[364757223,1749229891862,-480.0,0.00028712,2]
[364757224,1749229891873,-2003.46,0.00028712,5]
[364757225,1749229891882,-637.64,0.00028712,5]
[364757226,1749229891891,-1355.4,0.00028712,5]
[364757227,1749229891901,-480.0,0.00028712,5]
[364757228,1749229891910,-480.0,0.00028712,5]
[364757229,1749229891919,-480.0,0.00028712,2]
[364757230,1749229891929,-480.0,0.00028712,5]
[364757231,1749229891939,-1289.4,0.00028712,5]
[364757232,1749229891949,-347.392354,0.00028712,7]
[364757233,1749229891958,-841.89,0.00028712,5]
[364757234,1749229891967,-819.47,0.00028712,5]
[364757235,1749229891976,-347.392354,0.00028712,7]
[364757236,1749229891985,-1582.7,0.00028712,5]
[364757237,1749229891994,-849.03,0.00028712,5]
[364757238,1749229892004,-739.93,0.00028712,5]
[364757239,1749229892013,-692.16,0.00028712,5]
[364757240,1749229892023,-787.91,0.00028712,5]
[364757241,1749229892033,-151.0,0.00028712,7]
[364757242,1749229892042,-1648.73,0.00028712,5]
[364757243,1749229892052,-754.23,0.00028712,5]
[364757244,1749229892061,-580.44,0.00028712,5]
[364757245,1749229892070,-1093.91,0.00028712,5]
[364757246,1749229892079,-164.75868,0.00028712,7]
[364757247,1749229892089,-480.0,0.00028712,5]
[364757248,1749229892099,-150.0,0.00028721,2]
[364757249,1749229892108,-326.78703344,0.00028724,7]
[364757250,1749229892117,-255.59327405,0.00028724,7]
[364757251,1749229892127,-150.0,0.00028724,2]
[364757252,1749229892136,-151.0,0.0002873,2]
[364757253,1749229892146,-254.13227497,0.0002873,2]
[364757254,1749229892156,-150.0,0.00028736,7]
[364757255,1749229892166,-150.0,0.00028737,7]
[364757256,1749229892175,-150.0,0.00028741,7]
[364757257,1749229892186,-150.0,0.00028742,7]
[364757258,1749229892196,-326.78703344,0.00028756,7]
[364757259,1749229892206,-255.59327405,0.00028756,7]
[364757260,1749229892215,-150.0,0.00028765,7]
[364757261,1749229892227,-1000.0,0.00028767,15]
[364757262,1749229892236,-1000.0,0.00028767,15]
[364757263,1749229892245,-468.58740865,0.00028767,15]
[364757264,1749229892255,-926.55,0.00028767,2]
[364757265,1749229892264,-150.0,0.00028772,7]
[364757266,1749229892275,-159.20198,0.0002878,2]
[364757267,1749229892285,-150.0,0.0002878,7]
[364757268,1749229892294,-326.78703344,0.00028788,7]
[364757269,1749229892303,-255.59327405,0.00028788,7]
[364757270,1749229892313,-4337.28964724,0.0002879,2]
[364757271,1749229892323,-150.0,0.00028792,7]
[364757272,1749229892332,-500.0,0.00028794,7]
[364757273,1749229892342,-1614.10259472,0.00028797,19]
[364757274,1749229892351,-151.0,0.00028798,7]
[364757275,1749229892361,-151.0,0.00028798,7]
[364757276,1749229892370,-151.0,0.00028798,7]
[364757277,1749229892379,-151.0,0.00028798,7]
[364757278,1749229892390,-199.815143,0.00028798,7]
[364757279,1749229892399,-199.815143,0.00028798,7]
[364757280,1749229892409,-151.0,0.00028798,7]
[364757281,1749229892418,-151.0,0.00028798,7]
[364757282,1749229892428,-151.0,0.00028798,7]
[364757283,1749229892437,-151.0,0.00028798,7]
[364757284,1749229892447,-250.071268,0.00028798,7]
[364757285,1749229892456,-250.071268,0.00028798,7]
[364757286,1749229892466,-150.0,0.00028808,7]
[364757287,1749229892476,-150.0,0.00028811,2]
[364757288,1749229892486,-150.0,0.00028819,7]
[364757289,1749229892495,-326.78703344,0.0002882,7]
[364757290,1749229892505,-255.59327405,0.0002882,7]
[364757291,1749229892514,-150.0,0.00028826,7]
[364757292,1749229892523,-150.0,0.00028835,7]
[364757293,1749229892533,-151.0,0.00028844,7]
[364757294,1749229892543,-151.0,0.00028844,7]
[364757295,1749229892552,-151.0,0.00028844,7]
[364757296,1749229892560,-222.968153,0.00028844,7]
[364757297,1749229892569,-150.0,0.00028844,7]
[364757298,1749229892578,-150.0,0.00028847,7]
[364757299,1749229892587,-326.78703344,0.00028852,7]
[364757300,1749229892596,-255.59327405,0.00028852,7]
[364757301,1749229892605,-150.0,0.00028854,7]
[364757302,1749229892616,-150.0,0.00028857,7]
[364757303,1749229892625,-150.0,0.00028873,2]
[364757304,1749229892634,-10000.0,0.00028875,7]
[364757305,1749229892644,-10000.0,0.00028875,7]
[364757306,1749229892653,-164.396568,0.00028876,7]
[364757307,1749229892662,-164.396568,0.00028876,7]
[364757308,1749229892671,-151.0,0.00028876,7]
[364757309,1749229892680,-158.08647,0.00028876,7]
[364757310,1749229892690,-158.08647,0.00028876,7]
[364757311,1749229892701,-151.0,0.00028876,7]
[364757312,1749229892711,-261.505968,0.00028876,7]
[364757313,1749229892720,-151.0,0.00028876,7]
[364757314,1749229892729,-151.0,0.00028876,7]
[364757315,1749229892738,-151.0,0.00028876,7]
[364757316,1749229892749,-151.0,0.00028876,7]
[364757317,1749229892758,-207.475781,0.00028876,7]
[364757318,1749229892768,-151.0,0.00028876,7]
[364757319,1749229892777,-152.183462,0.00028876,7]
[364757320,1749229892786,-151.0,0.00028876,7]
[364757321,1749229892795,-151.0,0.00028876,7]
[364757322,1749229892804,-151.0,0.00028876,7]
[364757323,1749229892813,-291.983644,0.00028876,7]
[364757324,1749229892822,-276.091903,0.00028876,7]
[364757325,1749229892831,-276.091903,0.00028876,7]
[364757326,1749229892840,-813.484633,0.00028876,7]
[364757327,1749229892849,-813.484633,0.00028876,7]
[364757328,1749229892859,-151.0,0.00028876,7]
[364757329,1749229892868,-160.144455,0.00028876,7]
[364757330,1749229892877,-160.144455,0.00028876,7]
[364757331,1749229892886,-239.896546,0.00028876,7]
[364757332,1749229892895,-239.896546,0.00028876,7]
[364757333,1749229892903,-1010.98,0.00028876,5]
[364757334,1749229892912,-151.0,0.00028876,7]
[364757335,1749229892921,-151.0,0.00028876,7]
[364757336,1749229892930,-666.83,0.00028876,5]
[364757337,1749229892939,-151.0,0.00028876,7]
[364757338,1749229892948,-1122.19802,0.00028876,7]
[364757339,1749229892957,-151.0,0.00028876,7]
[364757340,1749229892966,-1122.19802,0.00028876,7]
[364757341,1749229892975,-151.0,0.00028876,7]
[364757342,1749229892985,-480.0,0.00028876,5]
[364757343,1749229892995,-480.0,0.00028876,5]
[364757344,1749229893007,-480.0,0.00028876,5]
[364757345,1749229893017,-151.0,0.00028876,7]
[364757346,1749229893027,-480.0,0.00028876,5]
[364757347,1749229893036,-480.0,0.00028876,5]
[364757348,1749229893047,-480.0,0.00028876,5]
[364757349,1749229893056,-1011.49,0.00028876,5]
[364757350,1749229893065,-311.31063395,0.00028876,5]
[364757351,1749229893074,-240.486893,0.00028876,7]
[364757352,1749229893084,-151.0,0.00028876,7]
[364757353,1749229893093,-240.486893,0.00028876,7]
[364757354,1749229893102,-151.0,0.00028876,7]
[364757355,1749229893111,-558.43,0.00028876,5]
[364757356,1749229893120,-610.13,0.00028876,5]
[364757357,1749229893130,-1715.86,0.00028876,5]
[364757358,1749229893140,-807.41,0.00028876,5]
[364757359,1749229893149,-602.58,0.00028876,5]
[364757360,1749229893158,-369.817025,0.00028876,7]
[364757361,1749229893167,-369.817025,0.00028876,7]
[364757362,1749229893177,-480.0,0.00028876,5]
[364757363,1749229893186,-480.0,0.00028876,5]
[364757364,1749229893197,-480.0,0.00028876,5]
[364757365,1749229893206,-480.0,0.00028876,5]
[364757366,1749229893215,-550.31,0.00028876,5]
[364757367,1749229893224,-622.13,0.00028876,5]
[364757368,1749229893234,-480.0,0.00028876,5]
[364757369,1749229893243,-599.55,0.00028876,5]
[364757370,1749229893253,-480.0,0.00028876,5]
[364757371,1749229893262,-490.64,0.00028876,5]
[364757372,1749229893272,-480.0,0.00028876,5]
[364757373,1749229893281,-203.189938,0.00028876,7]
[364757374,1749229893291,-203.189938,0.00028876,7]
[364757375,1749229893300,-151.0,0.00028876,7]
[364757376,1749229893310,-480.0,0.00028876,5]
[364757377,1749229893320,-480.0,0.00028876,5]
[364757378,1749229893330,-2384.26,0.00028876,5]
[364757379,1749229893340,-480.0,0.00028876,5]
[364757380,1749229893350,-653.07,0.00028876,5]
[364757381,1749229893359,-151.0,0.00028876,7]
[364757382,1749229893369,-757.83,0.00028876,5]
[364757383,1749229893379,-1601.61,0.00028876,5]
[364757384,1749229893390,-589.54,0.00028876,5]
[364757385,1749229893399,-480.0,0.00028876,5]
[364757386,1749229893410,-229.42916,0.00028876,7]
[364757387,1749229893420,-480.0,0.00028876,5]
[364757388,1749229893429,-229.42916,0.00028876,7]
[364757389,1749229893439,-233.18133329,0.00028876,5]
[364757390,1749229893448,-714.86,0.00028876,5]
[364757391,1749229893458,-777.0,0.00028876,5]
[364757392,1749229893468,-480.0,0.00028876,5]
[364757393,1749229893478,-1293.92,0.00028876,5]
[364757394,1749229893489,-256.28023242,0.00028876,5]
[364757395,1749229893499,-952.4,0.00028876,5]
[364757396,1749229893509,-692.87,0.00028876,5]
[364757397,1749229893519,-1552.44,0.00028876,5]
[364757398,1749229893529,-824.69,0.00028876,5]
[364757399,1749229893539,-878.5,0.00028876,5]
[364757400,1749229893549,-480.0,0.00028876,5]
[364757401,1749229893561,-1820.97,0.00028876,5]
[364757402,1749229893571,-1445.92,0.00028876,5]
[364757403,1749229893582,-480.0,0.00028876,5]
[364757404,1749229893592,-686.33,0.00028876,5]
[364757405,1749229893602,-1256.45,0.00028876,5]
[364757406,1749229893611,-1202.277604,0.00028876,7]
[364757407,1749229893622,-1202.277604,0.00028876,7]
[364757408,1749229893775,-1113.88,0.00028876,5]
[364757409,1749229893799,-480.0,0.00028876,5]
[364757410,1749229893809,-480.0,0.00028876,5]
[364757411,1749229893818,-876.31,0.00028876,5]
[364757412,1749229893828,-872.88,0.00028876,5]
[364757413,1749229893837,-565.93,0.00028876,5]
[364757414,1749229893847,-757.79,0.00028876,5]
[364757415,1749229893856,-767.93,0.00028876,5]
[364757416,1749229893866,-480.0,0.00028876,5]
[364757417,1749229893875,-1120.8,0.00028876,5]
[364757418,1749229893884,-480.0,0.00028876,5]
[364757419,1749229893894,-695.31,0.00028876,5]
[364757420,1749229893903,-673.95,0.00028876,5]
[364757421,1749229893912,-480.0,0.00028876,5]
[364757422,1749229893922,-931.01,0.00028876,5]
[364757423,1749229893932,-480.0,0.00028876,5]
[364757424,1749229893942,-480.0,0.00028876,5]
[364757425,1749229893952,-480.0,0.00028876,5]
[364757426,1749229893962,-609.77,0.00028876,5]
[364757427,1749229893971,-480.0,0.00028876,5]
[364757428,1749229893980,-480.0,0.00028876,5]
[364757429,1749229893990,-1281.91,0.00028876,5]
[364757430,1749229893999,-816.61,0.00028876,5]
[364757431,1749229894009,-480.0,0.00028876,5]
[364757432,1749229894018,-764.02,0.00028876,5]
[364757433,1749229894028,-1371.81,0.00028876,5]
[364757434,1749229894037,-1580.65,0.00028876,5]
[364757435,1749229894046,-480.0,0.00028876,5]
[364757436,1749229894055,-583.36,0.00028876,5]
[364757437,1749229894064,-533.29,0.00028876,5]
[364757438,1749229894074,-979.62,0.00028876,5]
[364757439,1749229894085,-480.0,0.00028876,5]
[364757440,1749229894095,-680.63,0.00028876,5]
[364757441,1749229894105,-610.2,0.00028876,5]
[364757442,1749229894114,-480.0,0.00028876,5]
[364757443,1749229894124,-767.55,0.00028876,5]
[364757444,1749229894133,-480.0,0.00028876,5]
[364757445,1749229894144,-1108.13,0.00028876,5]
[364757446,1749229894154,-1055.72,0.00028876,5]
[364757447,1749229894163,-1139.21,0.00028876,5]
[364757448,1749229894174,-480.0,0.00028876,5]
[364757449,1749229894183,-1478.89,0.00028876,5]
[364757450,1749229894194,-732.79,0.00028876,5]
[364757451,1749229894203,-480.0,0.00028876,5]
[364757452,1749229894213,-731.83,0.00028876,5]
[364757453,1749229894223,-202.034528,0.00028876,7]
[364757454,1749229894232,-639.73,0.00028876,5]
[364757455,1749229894241,-202.034528,0.00028876,7]
[364757456,1749229894251,-956.02,0.00028876,5]
[364757457,1749229894260,-151.0,0.00028876,7]
[364757458,1749229894269,-1739.7,0.00028876,5]
[364757459,1749229894280,-1036.79,0.00028876,5]
[364757460,1749229894289,-2235.27,0.00028876,5]
[364757461,1749229894299,-480.0,0.00028876,5]
[364757462,1749229894309,-504.96,0.00028876,5]
[364757463,1749229894318,-480.0,0.00028876,5]
[364757464,1749229894328,-539.64,0.00028876,5]
[364757465,1749229894338,-1178.04,0.00028876,5]
[364757466,1749229894348,-995.2,0.00028876,5]
[364757467,1749229894358,-1300.218002,0.00028876,7]
[364757468,1749229894368,-1300.218002,0.00028876,7]
[364757469,1749229894378,-1178.83,0.00028876,5]
[364757470,1749229894387,-1100.7,0.00028876,5]
[364757471,1749229894397,-1284.64,0.00028876,5]
[364757472,1749229894407,-751.51,0.00028876,5]
[364757473,1749229894417,-887.104213,0.00028876,7]
[364757474,1749229894426,-835.65,0.00028876,5]
[364757475,1749229894436,-3636.22,0.00028876,5]
[364757476,1749229894448,-887.104213,0.00028876,7]
[364757477,1749229894458,-480.0,0.00028876,5]
[364757478,1749229894468,-600.0,0.00028876,30]
[364757479,1749229894478,-1074.16,0.00028876,5]
[364757480,1749229894487,-5321.9,0.00028876,5]
[364757481,1749229894498,-480.0,0.00028876,5]
[364757482,1749229894507,-480.0,0.00028876,5]
[364757483,1749229894517,-987.67,0.00028876,5]
[364757484,1749229894527,-700.11,0.00028876,5]
[364757485,1749229894537,-2080.45,0.00028876,5]
[364757486,1749229894547,-480.0,0.00028876,5]
[364757487,1749229894557,-734.66,0.00028876,5]
[364757488,1749229894567,-6395.04,0.00028876,5]
[364757489,1749229894576,-480.0,0.00028876,5]
[364757490,1749229894586,-835.42,0.00028876,5]
[364757491,1749229894596,-480.0,0.00028876,5]
[364757492,1749229894606,-713.79,0.00028876,5]
[364757493,1749229894616,-2288.96,0.00028876,5]
[364757494,1749229894629,-1697.69,0.00028876,5]
[364757495,1749229894638,-727.92,0.00028876,5]
[364757496,1749229894647,-12208.62,0.00028876,5]
[364757497,1749229894658,-3886.76,0.00028876,5]
[364757498,1749229894667,-6723.06,0.00028876,5]
[364757499,1749229894676,-2328.748482,0.00028876,5]
[364757500,1749229894685,-480.0,0.00028876,5]
[364757501,1749229894696,-3392.86,0.00028876,5]
[364757502,1749229894707,-540.76,0.00028876,5]
[364757503,1749229894718,-151.0,0.00028876,7]
[364757504,1749229894727,-527.54,0.00028876,5]
[364757505,1749229894736,-1957.55,0.00028876,5]
[364757506,1749229894745,-1317.74,0.00028876,5]
[364757507,1749229894755,-2152.11,0.00028876,5]
[364757508,1749229894764,-9718.94,0.00028876,5]
[364757509,1749229894773,-480.0,0.00028876,5]
[364757510,1749229894783,-76268.38,0.00028876,5]
[364757511,1749229894794,-978.82,0.00028876,5]
[364757512,1749229894804,-1959.11,0.00028876,5]
[364757513,1749229894813,-587.06,0.00028876,5]
[364757514,1749229894823,-499.91,0.00028876,5]
[364757515,1749229894833,-480.0,0.00028876,5]
[364757516,1749229894843,-725.67,0.00028876,5]
[364757517,1749229894852,-2136.804126,0.00028876,5]
[364757518,1749229894862,-3764.36,0.00028876,5]
[364757519,1749229894871,-9211.11,0.00028876,5]
[364757520,1749229894888,-1051.06,0.00028876,5]
[364757521,1749229894897,-1366.23,0.00028876,5]
[364757522,1749229894907,-2252.79,0.00028876,5]
[364757523,1749229894916,-1624.53,0.00028876,5]
[364757524,1749229894926,-983.23,0.00028876,5]
[364757525,1749229894935,-2500.86,0.00028876,5]
[364757526,1749229894946,-508.09,0.00028876,5]
[364757527,1749229894955,-2408.48,0.00028876,5]
[364757528,1749229894965,-1199.82,0.00028876,5]
[364757529,1749229894975,-2706.51,0.00028876,5]
[364757530,1749229894986,-473.147601,0.00028876,7]
[364757531,1749229894996,-1867.89,0.00028876,5]
[364757532,1749229895007,-1202.07,0.00028876,5]
[364757533,1749229895017,-1234.98,0.00028876,5]
[364757534,1749229895027,-473.147601,0.00028876,7]
[364757535,1749229895037,-745.42,0.00028876,5]
[364757536,1749229895047,-1000.0,0.00028876,5]
[364757537,1749229895056,-3729.37,0.00028876,5]
[364757538,1749229895067,-1324.5,0.00028876,5]
[364757539,1749229895076,-722.71,0.00028876,5]
[364757540,1749229895086,-1417.88,0.00028876,5]
[364757541,1749229895096,-1476.23,0.00028876,5]
[364757542,1749229895105,-282.73995091,0.00028876,5]
[364757543,1749229895115,-868.6,0.00028876,5]